bitfinex/quotes_SOLUSD_20240726
["timestamp","ask_amount","ask_price","bid_price","bid_amount"]
[1721968590515,40.8132,176.76,176.68,6.88872827]
[1721968590814,24.87,176.72,176.64,47.525047]
[1721968591016,24.87,176.72,176.64,24.87]
[1721968591193,5.6587,176.72,176.64,24.87]
[1721968591400,24.87,176.74,176.64,24.87]
[1721968591598,24.87,176.74,176.66,24.87]
[1721968591902,30.5281,176.74,176.66,24.87]
[1721968592214,5.6584,176.73,176.66,24.87]
[1721968592422,24.87,176.74,176.66,24.87]
[1721968592930,30.5283,176.74,176.66,24.87]
[1721968593399,5.6584,176.73,176.66,24.87]
[1721968594018,6.0397,176.75,176.66,24.87]
[1721968594196,21.6006,176.76,176.68,24.87]
[1721968594520,15.9432,176.76,176.7,24.87]
[1721968594815,21.6006,176.76,176.7,24.87]
[1721968595017,15.9432,176.76,176.7,24.87]
[1721968596622,15.9981,176.8,176.74,24.87]
[1721968597009,5.6564,176.79,176.72,24.87]
[1721968597219,5.6564,176.79,176.73,20.0]
[1721968598424,46.5242,176.8,176.73,20.0]
[1721968599027,40.8681,176.8,176.72,24.87]
[1721968599230,5.6574,176.76,176.7,24.87]
[1721968599928,26.28474847,176.76,176.68,24.87]
[1721968600129,5.6584,176.73,176.66,24.87]
[1721968600511,24.87,176.74,176.66,24.87]
[1721968600918,30.5281,176.74,176.66,24.87]
[1721968601430,1.41493267,176.73,176.64,24.87]
[1721968601937,7.07333267,176.73,176.64,24.87]
[1721968602946,5.6584,176.73,176.65,20.0]
[1721968603229,16.279,176.72,176.65,20.0]
[1721968603629,1.41500183,176.71,176.65,20.0]
[1721968604032,46.8078,176.72,176.65,20.0]
[1721968604217,41.149,176.72,176.65,20.0]
[1721968604425,16.279,176.72,176.65,20.0]
[1721968604739,16.279,176.72,176.66,1.01311777]
[1721968605540,21.9377,176.72,176.65,20.0]
[1721968605731,7.07400118,176.71,176.65,20.0]
[1721968605933,7.07400118,176.71,176.64,24.87]
[1721968606517,5.659,176.71,176.64,24.87]
[1721968607614,7.07451202,176.7,176.64,24.87]
[1721968607963,7.07451202,176.7,176.62,24.87]
[1721968607964,5.6596,176.69,176.62,24.87]
[1721968608122,5.6596,176.69,176.63,20.0]
[1721968608442,5.66,176.68,176.61,8.87107398]
[1721968608623,7.07531373,176.68,176.6,24.87]
[1721968608940,5.66,176.68,176.6,24.87]
[1721968609329,30.53,176.68,176.6,24.87]
[1721968609638,5.6602,176.67,176.6,24.87]
[1721968609832,5.6602,176.67,176.61,19.5]
[1721968610023,5.66,176.68,176.61,19.5]
[1721968611224,5.6596,176.69,176.61,19.5]
[1721968612242,5.66,176.68,176.61,19.5]
[1721968612440,1.41536713,176.67,176.61,19.5]
[1721968612640,7.07566713,176.67,176.61,19.5]
[1721968612839,5.6603,176.67,176.61,19.5]
[1721968613423,37.1463,176.68,176.61,19.5]
[1721968615033,24.87,176.7,176.62,24.87]
[1721968616046,5.6596,176.69,176.62,24.87]
[1721968616259,24.87,176.7,176.62,24.87]
[1721968616465,26.2853593,176.7,176.62,24.87]
[1721968616632,5.6605,176.67,176.62,24.87]
[1721968616832,5.6605,176.67,176.61,19.5]
[1721968617342,5.6602,176.68,176.61,19.5]
[1721968617521,5.6602,176.68,176.61,20.51397629]
[1721968617947,30.5296,176.7,176.62,24.87]
[1721968618150,5.6596,176.7,176.62,24.87]
[1721968618528,5.6596,176.7,176.61,19.5]
[1721968618529,46.8078,176.72,176.64,24.87]
[1721968618839,21.9378,176.72,176.64,24.87]
[1721968620129,21.9378,176.72,176.61,20.5134158]
[1721968620130,5.6583,176.74,176.69,24.87]
[1721968620538,16.3695,176.76,176.7,1.01250349]
[1721968620744,16.3695,176.76,176.69,24.87]
[1721968620926,16.3695,176.76,176.67,24.87]
[1721968621131,5.6586,176.73,176.68,21.01273581]
[1721968621331,5.6577,176.75,176.69,1.01268119]
[1721968621551,5.6577,176.75,176.69,25.88234959]
[1721968621746,5.6581,176.74,176.69,24.87]
[1721968622459,22.0269,176.76,176.69,24.87]
[1721968622845,5.6577,176.75,176.69,24.87]
[1721968623045,22.0269,176.76,176.69,24.87]
[1721968623656,31.0734,176.79,176.71,24.87]
[1721968623859,5.6568,176.78,176.71,24.87]
[1721968624067,5.6568,176.78,176.69,1.01225441]
[1721968624068,41.5212,176.81,176.73,24.87]
[1721968624245,11.8693,176.84,176.77,24.87]
[1721968624568,24.87,176.85,176.77,24.87]
[1721968624769,5.6563,176.8,176.75,24.87]
[1721968625557,5.6563,176.8,176.74,20.0]
[1721968626146,24.87,176.81,176.74,20.0]
[1721968626456,26.28431203,176.81,176.74,20.0]
[1721968627155,30.526,176.81,176.74,20.0]
[1721968627343,5.6555,176.82,176.74,20.0]
[1721968627550,5.6558,176.81,176.74,20.0]
[1721968627950,5.6555,176.82,176.74,20.0]
[1721968628157,5.6555,176.82,176.75,24.87]
[1721968628541,24.87,176.83,176.75,24.87]
[1721968628741,15.327,176.86,176.79,24.87]
[1721968629061,20.9812,176.86,176.79,24.87]
[1721968629366,5.6546,176.85,176.79,24.87]
[1721968630346,5.6549,176.84,176.79,24.87]
[1721968630569,5.6552,176.83,176.79,24.87]
[1721968631074,5.6552,176.83,176.77,24.87]
[1721968631650,5.6556,176.82,176.76,20.0]
[1721968632243,15.327,176.86,176.79,24.87]
[1721968632449,15.239,176.9,176.83,24.87]
[1721968632669,20.892,176.9,176.83,24.87]
[1721968633349,24.87,176.93,176.85,24.87]
[1721968633554,15.239,176.95,176.87,24.87]
[1721968633749,24.87,176.99,176.91,24.87]
[1721968634350,24.87,176.99,176.88,20.0]
[1721968634351,24.87,176.97,176.88,20.0]
[1721968634551,24.87,176.95,176.87,44.87]
[1721968634750,5.6516,176.94,176.87,44.87]
[1721968635052,24.87,176.97,176.87,44.87]
[1721968635360,24.87,176.97,176.89,24.87]
[1721968635566,24.87,176.95,176.87,20.0]
[1721968635751,26.28325592,176.95,176.87,20.0]
[1721968636070,30.5213,176.95,176.87,20.0]
[1721968636276,24.87,176.95,176.87,20.0]
[1721968636453,24.87,176.95,176.88,24.87]
[1721968636772,24.87,176.95,176.89,20.0]
[1721968637071,5.6516,176.94,176.86,40.3438]
[1721968637274,1.41332764,176.93,176.87,20.0]
[1721968637770,7.06522764,176.93,176.87,20.0]
[1721968637960,5.6519,176.93,176.87,20.0]
[1721968638169,26.28344684,176.95,176.87,20.0]
[1721968638170,24.87,176.95,176.87,20.0]
[1721968638378,30.5215,176.95,176.87,20.0]
[1721968638749,24.87,176.97,176.88,24.87]
[1721968639376,24.87,176.97,176.89,20.0]
[1721968639583,24.87,176.99,176.9,24.87]
[1721968639748,24.87,176.99,176.91,20.0]
[1721968639947,16.5965,177.0,176.92,24.87]
[1721968640168,24.87,177.01,176.92,24.87]
[1721968640372,30.5188,177.03,176.94,24.87]
[1721968640671,5.649,177.02,176.94,24.87]
[1721968641773,30.5188,177.03,176.94,24.87]
[1721968642659,31.9313984,177.03,176.94,24.87]
[1721968642856,15.2992,177.04,176.96,24.87]
[1721968643173,27.3199,177.09,177.0,24.87]
[1721968643369,5.6462,177.11,177.02,24.87]
[1721968643671,5.6468,177.09,177.02,24.87]
[1721968643976,24.87,177.11,177.02,24.87]
[1721968644168,5.6466,177.1,177.02,24.87]
[1721968644369,31.92838206,177.11,177.02,24.87]
[1721968644568,7.05838206,177.11,177.02,24.87]
[1721968644750,46.9762,177.14,177.04,24.87]
[1721968644955,46.9762,177.14,177.05,20.0]
[1721968645173,24.87,177.12,177.05,20.0]
[1721968645651,24.87,177.12,177.04,24.87]
[1721968645850,5.6465,177.1,177.02,24.87]
[1721968646157,24.87,177.12,177.03,20.0]
[1721968646854,5.6463,177.11,177.03,20.0]
[1721968648458,31.92778318,177.12,177.03,20.0]
[1721968648874,30.5159,177.12,177.03,20.0]
[1721968649257,24.87,177.12,177.03,20.0]
[1721968649459,30.5159,177.12,177.03,20.0]
[1721968650164,24.87,177.12,177.03,20.0]
[1721968650562,26.28188482,177.12,177.03,20.0]
[1721968651278,24.87,177.1,177.03,20.0]
[1721968652275,24.87,177.1,177.01,20.0]
[1721968652478,24.87,177.08,177.01,20.0]
[1721968653484,30.5171,177.08,177.01,20.0]
[1721968654178,24.87,177.08,177.01,20.0]
[1721968654383,39.0962,177.14,177.0,15.3394]
[1721968654384,24.87,177.06,177.0,15.3394]
[1721968654587,24.87,177.06,176.99,6.3324]
[1721968655786,24.87,177.06,177.0,20.0]
[1721968657285,5.6485,177.04,176.92,21.9266]
[1721968657488,30.521,176.96,176.87,21.9266]
[1721968657674,1.41311043,176.95,176.88,24.87]
[1721968657868,31.93425154,176.96,176.88,24.87]
[1721968658183,24.87,176.96,176.88,24.87]
[1721968658383,24.87,176.98,176.88,24.87]
[1721968658585,24.87,176.96,176.88,24.87]
[1721968658786,30.521,176.96,176.88,24.87]
[1721968659289,5.6517,176.94,176.87,6.2263]
[1721968659588,5.652,176.93,176.86,24.87]
[1721968659798,26.28331699,176.94,176.83,6.2263]
[1721968659799,7.06567793,176.92,176.84,24.87]
[1721968660690,24.87,176.92,176.83,6.2263]
[1721968660887,30.5223,176.92,176.84,24.87]
[1721968661187,24.87,176.94,176.86,24.87]
[1721968661390,13.69869193,176.95,176.86,24.87]
[1721968661786,7.06469193,176.95,176.86,24.87]
[1721968662090,1.41329193,176.95,176.87,20.0]
[1721968662270,46.41329193,176.95,176.87,20.0]
[1721968662984,45.0,176.95,176.87,20.0]
[1721968663591,50.6513,176.95,176.87,20.0]
[1721968663889,30.521,176.96,176.88,24.87]
[1721968664085,5.6513,176.95,176.88,24.87]
[1721968664272,5.652,176.93,176.87,20.0]
[1721968665698,5.6517,176.94,176.87,20.0]
[1721968666688,21.0937,177.01,176.92,24.87]
[1721968666990,5.6496,177.01,176.94,24.87]
[1721968667189,5.649,177.02,176.94,24.87]
[1721968667487,5.6494,177.01,176.94,24.87]
[1721968667686,30.519,177.03,176.94,24.87]
[1721968667885,5.6484,177.04,176.96,24.87]
[1721968668073,24.87,177.07,176.98,24.87]
[1721968668268,26.28228207,177.07,176.98,24.87]
[1721968668471,26.28228207,177.07,176.94,24.87]
[1721968668472,24.87,177.07,177.0,24.87]
[1721968668679,30.5175,177.07,177.0,24.87]
[1721968669678,1.41221067,177.06,176.98,24.87]
[1721968669879,5.6488,177.03,176.98,24.87]
[1721968670099,7.06157922,177.02,176.96,24.87]
[1721968670402,24.87,177.05,176.97,20.0]
[1721968670911,24.87,177.05,176.96,24.87]
[1721968671100,1.41251488,177.04,176.96,24.87]
[1721968671397,5.6489,177.03,176.96,24.87]
[1721968672282,5.6484,177.04,176.96,24.87]
[1721968672481,30.5181,177.05,176.96,24.87]
[1721968673703,5.649,177.03,176.96,24.87]
[1721968673906,5.649,177.03,176.97,20.0]
[1721968674113,24.87,177.08,176.99,24.87]
[1721968674398,5.6468,177.09,177.01,24.87]
[1721968674577,5.6463,177.11,177.05,24.87]
[1721968674779,24.87,177.13,177.05,24.87]
[1721968674780,5.6466,177.1,177.05,24.87]
[1721968674989,5.6466,177.1,177.03,24.87]
[1721968676700,5.6468,177.09,177.03,24.87]
[1721968677196,5.6465,177.1,177.03,24.87]
[1721968678102,5.6462,177.11,177.03,24.87]
[1721968678881,5.6466,177.1,177.03,24.87]
[1721968679694,24.87,177.13,177.03,25.87577501]
[1721968679695,5.6468,177.09,177.03,25.87577501]
[1721968680002,5.6468,177.09,177.03,24.87]
[1721968680198,5.6466,177.1,177.03,25.87581193]
[1721968680509,5.6466,177.1,177.03,24.87]
[1721968680712,5.6468,177.09,177.03,24.87]
[1721968681590,30.5164,177.11,177.03,24.87]
[1721968681795,40.6455,177.14,177.07,24.87]
[1721968682105,6.1687,177.15,177.07,24.87]
[1721968682399,5.6453,177.14,177.07,24.87]
[1721968682592,1.41160661,177.15,177.07,24.87]
[1721968682793,5.6458,177.13,177.07,24.87]
[1721968683313,5.6459,177.12,177.07,24.87]
[1721968684516,5.6465,177.1,177.05,24.87]
[1721968684723,5.6462,177.11,177.05,24.87]
[1721968684921,5.6458,177.13,177.05,24.87]
[1721968685210,24.87,177.14,177.07,24.87]
[1721968685522,5.6451,177.15,177.07,24.87]
[1721968685887,5.6453,177.14,177.07,24.87]
[1721968687710,1.41150881,177.15,177.07,24.87]
[1721968687892,26.28165076,177.14,177.05,24.87]
[1721968688093,5.6459,177.12,177.05,24.87]
[1721968689004,24.87,177.14,177.05,24.87]
[1721968689220,5.6459,177.12,177.05,24.87]
[1721968689904,5.6462,177.11,177.05,24.87]
[1721968690692,5.6459,177.12,177.05,24.87]
[1721968691116,5.6459,177.12,177.07,24.87]
[1721968693301,5.6456,177.13,177.07,24.87]
[1721968694619,5.6459,177.12,177.07,24.87]
[1721968695693,24.87,177.14,177.02,7.12714414]
[1721968695694,1.41166292,177.13,177.05,24.87]
[1721968695994,5.6466,177.1,177.05,24.87]
[1721968696200,1.41166292,177.13,177.05,24.87]
[1721968696201,5.6462,177.11,177.05,24.87]
[1721968696994,24.87,177.14,177.07,24.87]
[1721968697316,24.87,177.16,177.07,24.87]
[1721968697612,26.28166052,177.16,177.07,24.87]
[1721968698113,5.6453,177.14,177.07,24.87]
[1721968698499,5.6456,177.13,177.07,24.87]
[1721968700725,5.6459,177.12,177.07,24.87]
[1721968702923,5.6462,177.11,177.07,24.87]
[1721968703241,30.5154,177.14,177.07,24.87]
[1721968704323,30.5154,177.14,177.05,24.87]
[1721968704324,1.41154217,177.13,177.05,24.87]
[1721968704839,5.6461,177.12,177.05,24.87]
[1721968705004,5.6468,177.1,177.03,24.87]
[1721968705404,7.05794876,177.11,177.03,24.87]
[1721968705616,30.5153,177.14,177.05,24.87]
[1721968705902,5.6456,177.13,177.05,24.87]
[1721968706097,5.6459,177.12,177.05,24.87]
[1721968706333,5.6462,177.11,177.05,24.87]
[1721968706822,5.6459,177.12,177.05,24.87]
[1721968708005,1.41174692,177.11,177.03,24.87]
[1721968708324,5.6485,177.04,176.98,40.2924]
[1721968708617,5.6481,177.05,176.98,40.2924]
[1721968708817,7.06082289,177.04,176.98,40.2924]
[1721968709215,5.6485,177.04,176.98,40.2924]
[1721968709522,26.28248974,177.04,176.96,24.87]
[1721968709718,26.28248974,177.04,176.93,15.1882]
[1721968709910,5.6497,177.01,176.95,24.87]
[1721968710218,1.41262831,177.0,176.95,24.87]
[1721968710627,7.06242831,177.0,176.93,40.0582]
[1721968711328,1.41264817,176.99,176.93,40.0582]
[1721968711515,7.06274817,176.99,176.93,40.0582]
[1721968711709,26.28277049,177.0,176.92,6.0792]
[1721968712419,5.65,176.99,176.92,6.0792]
[1721968712722,1.41278299,176.98,176.92,6.0792]
[1721968713506,5.651,176.96,176.91,24.87]
[1721968713815,31.93308351,176.98,176.91,24.87]
[1721968714216,30.5203,176.98,176.91,24.87]
[1721968714516,7.06377692,176.97,176.91,24.87]
[1721968714703,30.5213,176.96,176.89,16.4708]
[1721968714910,1.41311185,176.95,176.89,16.4708]
[1721968715108,24.87,176.98,176.91,24.87]
[1721968715306,5.6504,176.98,176.91,24.87]
[1721968715622,33.71130981,177.02,176.91,24.87]
[1721968715623,1.41287589,177.01,176.91,24.87]
[1721968715921,30.5196,177.01,176.93,24.87]
[1721968716099,5.6502,176.99,176.93,24.87]
[1721968716303,5.65,176.99,176.93,24.87]
[1721968718006,5.6497,177.0,176.93,24.87]
[1721968719336,30.5194,177.01,176.93,24.87]
[1721968719541,5.6497,177.0,176.93,24.87]
[1721968721323,26.28261986,177.01,176.91,24.87]
[1721968721640,5.651,176.96,176.89,41.3408]
[1721968721813,5.651,176.96,176.9,20.0]
[1721968722014,5.6507,176.97,176.9,20.0]
[1721968722410,5.6504,176.98,176.9,20.0]
[1721968722610,5.6504,176.98,176.91,24.87]
[1721968722915,5.6497,177.0,176.93,24.87]
[1721968723813,5.6501,176.99,176.93,24.87]
[1721968724014,5.6501,176.99,176.91,24.87]
[1721968724327,5.6505,176.98,176.91,24.87]
[1721968725032,24.87,177.01,176.91,24.87]
[1721968725232,26.28266023,177.01,176.92,20.0]
[1721968725536,5.6497,177.0,176.92,20.0]
[1721968726331,12.43,176.99,176.95,12.43]
[1721968727423,12.43,176.98,176.94,12.43]
[1721968727727,18.0804,176.98,176.94,12.43]
[1721968728121,12.43,176.97,176.93,12.43]
[1721968732316,14.1213,177.04,176.94,12.43]
[1721968732616,12.43,176.99,176.95,12.43]
[1721968733136,12.43,176.97,176.94,12.43]
[1721968733714,12.43,176.98,176.94,12.43]
[1721968735216,12.43,176.99,176.95,12.43]
[1721968735427,16.1176,177.06,176.96,12.43]
[1721968735628,16.1176,177.06,176.99,12.43]
[1721968735629,5.6484,177.05,176.99,12.43]
[1721968735936,12.43,177.03,176.99,12.43]
[1721968736317,12.43,177.04,177.0,12.43]
[1721968736518,12.43,177.05,177.01,12.43]
[1721968736835,12.43,177.04,177.0,12.43]
[1721968737439,12.43,177.03,176.99,12.43]
[1721968737631,16.2802,177.1,177.02,12.43]
[1721968737816,12.43,177.08,177.04,12.43]
[1721968738015,12.43,177.09,177.05,12.43]
[1721968738223,16.2029,177.14,177.06,1.00562558]
[1721968738434,16.2029,177.14,177.05,24.82]
[1721968738735,30.4656,177.13,177.05,24.82]
[1721968739032,5.6459,177.12,177.05,24.82]
[1721968739739,5.6462,177.11,177.05,24.82]
[1721968740517,5.6466,177.1,177.03,24.82]
[1721968740723,5.6466,177.1,177.04,20.0]
[1721968740724,5.6465,177.1,177.04,20.0]
[1721968741039,1.41189661,177.1,177.04,20.0]
[1721968741238,24.82,177.09,177.02,20.0]
[1721968741545,5.6459,177.12,177.05,24.82]
[1721968741745,5.6462,177.11,177.03,24.82]
[1721968741914,5.6465,177.1,177.03,24.82]
[1721968742116,5.6468,177.09,177.03,24.82]
[1721968742938,5.6472,177.08,177.01,30.8678]
[1721968743119,7.05926687,177.08,177.01,24.82]
[1721968743316,7.05945673,177.07,177.01,24.82]
[1721968743729,5.6478,177.06,176.99,24.82]
[1721968743923,1.41221045,177.05,176.99,24.82]
[1721968744125,5.6478,177.06,176.99,24.82]
[1721968744332,30.4675,177.07,176.99,24.82]
[1721968745037,5.6475,177.07,176.99,24.82]
[1721968745723,5.6478,177.06,176.99,24.82]
[1721968747416,5.6475,177.07,176.99,24.82]
[1721968748032,5.6478,177.06,176.99,24.82]
[1721968748521,5.6481,177.05,176.99,24.82]
[1721968749131,5.6478,177.06,176.99,24.82]
[1721968750027,5.6474,177.08,176.99,24.82]
[1721968750227,5.6474,177.08,177.01,24.82]
[1721968750554,5.6468,177.09,177.01,24.82]
[1721968751128,5.6464,177.11,177.03,24.82]
[1721968751325,5.6464,177.11,177.05,24.82]
[1721968751628,5.6459,177.12,177.05,24.82]
[1721968751830,24.82,177.15,177.05,24.82]
[1721968751831,5.6456,177.13,177.05,24.82]
[1721968752342,6.2354,177.16,177.05,24.82]
[1721968752531,5.6456,177.13,177.05,24.82]
[1721968753129,46.6681,177.14,177.05,24.82]
[1721968753327,5.6452,177.14,177.07,24.82]
[1721968753527,5.6456,177.13,177.07,24.82]
[1721968753726,5.6459,177.12,177.07,24.82]
[1721968754015,5.6459,177.12,177.05,40.8969]
[1721968754221,5.6459,177.12,177.06,1.00497724]
[1721968754434,5.6456,177.13,177.07,24.82]
[1721968754636,5.6453,177.14,177.07,24.82]
[1721968754943,5.6456,177.13,177.07,24.82]
[1721968755441,5.6468,177.1,177.05,16.0769]
[1721968755627,24.82,177.14,177.05,16.0769]
[1721968755947,5.6462,177.11,177.06,24.82]
[1721968756149,5.6459,177.12,177.06,24.82]
[1721968757031,5.6462,177.11,177.06,24.82]
[1721968757530,5.6465,177.1,177.04,24.82]
[1721968760144,5.6461,177.12,177.06,24.82]
[1721968760348,5.6461,177.12,177.02,1.00537391]
[1721968760349,5.6461,177.12,177.09,12.41]
[1721968760648,5.6461,177.12,177.03,49.64]
[1721968760649,5.6462,177.11,177.08,12.41]
[1721968760848,12.41,177.12,177.08,12.41]
[1721968761052,18.0559,177.12,177.08,12.41]
[1721968761258,6.2354,177.16,177.1,12.41]
[1721968761561,12.41,177.13,177.09,12.41]
[1721968761739,5.6459,177.12,177.09,12.41]
[1721968762141,18.0559,177.12,177.08,12.41]
[1721968763039,5.6463,177.11,177.08,12.41]
[1721968763951,5.6463,177.11,177.08,12.311073]
[1721968764348,5.6463,177.11,177.01,15.6886]
[1721968764349,5.6465,177.1,177.07,12.41]
[1721968764541,18.0565,177.1,177.06,12.41]
[1721968765448,12.41,177.1,177.06,12.41]
[1721968766046,18.0562,177.11,177.07,12.41]
[1721968766246,12.41,177.11,177.08,12.41]
[1721968767441,5.6462,177.11,177.08,12.41]
[1721968767643,5.6465,177.1,177.07,12.41]
[1721968767946,18.0562,177.11,177.07,12.41]
[1721968768843,5.6465,177.1,177.07,12.41]
[1721968769045,18.0565,177.1,177.06,12.41]
[1721968769457,12.41,177.1,177.06,12.41]
[1721968769858,18.0565,177.1,177.06,12.41]
[1721968770576,18.0577,177.07,176.97,21.7232]
[1721968770743,13.82208871,177.06,177.02,12.41]
[1721968771143,18.0578,177.06,177.02,12.41]
[1721968771449,5.6478,177.06,177.03,12.41]
[1721968771646,5.6478,177.06,177.02,12.41]
[1721968771647,1.41215687,177.05,177.02,12.41]
[1721968771964,18.0578,177.06,177.02,12.41]
[1721968774265,5.6481,177.05,176.97,21.03146425]
[1721968774465,18.0581,177.05,177.01,12.41]
[1721968774662,12.41,177.05,177.01,12.41]
[1721968775068,12.41,177.06,177.02,12.41]
[1721968776454,12.41,177.08,177.04,12.41]
[1721968776661,12.41,177.09,177.05,12.41]
[1721968776970,12.41,177.09,176.97,16.15778663]
[1721968776971,24.638,177.12,177.08,12.41]
[1721968777867,12.41,177.11,177.07,12.41]
[1721968778050,12.41,177.09,177.05,12.41]
[1721968778253,18.0568,177.09,177.05,12.41]
[1721968778462,5.6468,177.09,177.06,12.41]
[1721968778657,18.0568,177.09,177.06,12.41]
[1721968778864,18.0568,177.09,177.04,12.41]
[1721968778865,12.41,177.08,177.04,12.41]
[1721968781461,12.41,177.08,177.01,6.0931]
[1721968781462,5.6463,177.11,177.06,12.41]
[1721968781665,18.38196342,177.16,177.07,21.00532067]
[1721968781666,12.41,177.16,177.07,21.00532067]
[1721968781857,12.41,177.13,177.09,12.41]
[1721968782774,12.41,177.14,177.1,12.41]
[1721968783770,12.41,177.13,177.09,12.41]
[1721968784169,18.0553,177.14,177.1,12.41]
[1721968786261,0.7891126,177.18,177.08,1.00483596]
[1721968786578,0.7891126,177.18,177.15,12.41]
[1721968787262,13.1991126,177.18,177.14,12.41]
[1721968788060,18.0543,177.17,177.13,12.41]
[1721968788864,18.8431126,177.18,177.14,12.41]
[1721968789074,0.7891126,177.18,177.15,12.41]
[1721968790673,0.7891126,177.18,177.17,12.41]
[1721968792484,13.82082068,177.29,177.21,49.64]
[1721968792691,18.0513,177.27,177.23,12.41]
[1721968792876,12.41,177.27,177.23,12.41]
[1721968793268,12.41,177.28,177.24,12.41]
[1721968793770,5.641,177.28,177.24,12.41]
[1721968793994,5.6412,177.27,177.24,12.41]
[1721968794162,18.0512,177.27,177.23,12.41]
[1721968794362,12.41,177.25,177.21,12.41]
[1721968794572,5.6411,177.27,177.21,12.41]
[1721968794783,12.41,177.26,177.22,12.41]
[1721968794971,12.41,177.26,177.17,68.07819687]
[1721968794972,12.41,177.27,177.23,12.41]
[1721968795172,19.46160728,177.27,177.23,12.41]
[1721968795370,12.41,177.26,177.22,12.41]
[1721968796864,18.0514,177.26,177.22,12.41]
[1721968797071,12.41,177.25,177.21,12.41]
[1721968798078,6.6526,177.3,177.21,12.41]
[1721968798279,12.41,177.26,177.22,12.41]
[1721968798476,12.41,177.25,177.17,6.6099]
[1721968798686,12.41,177.25,177.21,12.41]
[1721968800290,5.6414,177.26,177.21,12.41]
[1721968800483,12.41,177.25,177.21,12.41]
[1721968801786,32.644,177.32,177.18,21.00254945]
[1721968801787,39.2448,177.32,177.18,21.00254945]
[1721968802091,12.41,177.24,177.2,12.41]
[1721968802291,12.41,177.21,177.13,21.907]
[1721968802503,15.7337,177.25,177.2,12.41]
[1721968802691,12.41,177.25,177.21,12.41]
[1721968804289,12.41,177.25,177.15,1.00244069]
[1721968804590,12.41,177.25,177.21,12.41]
[1721968805582,12.41,177.25,177.2,12.41]
[1721968806395,12.41,177.24,177.2,12.41]
[1721968806590,12.41,177.24,177.15,46.00244069]
[1721968806791,12.41,177.24,177.2,12.41]
[1721968807200,15.7337,177.29,177.2,12.41]
[1721968807398,15.7337,177.29,177.23,12.41]
[1721968807600,12.41,177.27,177.23,12.41]
[1721968808196,15.7337,177.29,177.24,12.41]
[1721968808389,12.41,177.27,177.23,12.41]
[1721968808589,0.3352,177.3,177.26,12.41]
[1721968808790,0.3352,177.3,177.27,12.41]
[1721968809005,0.3352,177.3,177.28,12.41]
[1721968809191,0.3352,177.3,177.26,12.41]